Cogmind - Beta 14 @@@ ROGUE MODE // 2024.09.01 @ 23:42:35 Player: Andru7428 Result: Self-destructed Performance ------------- Evolutions (9) 4500 Regions Visited (31) 6200 Robots Destroyed (362) 1810 Value Destroyed (16683) 16683 Prototype IDs (62) 1240 Alien Tech Used (3) 600 Bonus (12185) 12185 TOTAL SCORE: 43218 Bonus ------- High Alert Combat Kills 1609 Follower Combat Kills 3115 Entered Garrisons 200 Network Hubs Disabled 400 Met Data Miner 300 Met Zhirov 300 Met Warlord at Base 500 MAIN.C Attacked Warlord 500 Warlord Defense Kills 1000 Built Enhanced Grunts 300 Met Warlord at Research 2000 Invited to Help at Command 2000 Scanned by Researcher 500 Friendly Fire -539 Cogmind --------- Core Integrity 1193/1600 Matter 151/300 Energy 531/840 System Corruption 11% Temperature Cool (0) Movement Walking (100) Location -1/Access Parts ------- > --- POWER (2) -------- Heavy Antimatter Reactor > --- PROPULSION (4) --- Myomer Exoskeleton > --- UTILITY (15) ----- Advanced Heat Sink Large Storage Unit Advanced Energy Well Advanced Signal Interpreter Advanced Targeting Computer Advanced Target Analyzer Advanced Weapon Cycler Advanced Transmission Jammer Advanced Hacking Suite Advanced System Shield > --- WEAPON (5) ------- Enhanced Quantum Rifle Enhanced Quantum Rifle > --- INVENTORY (15) --- Quantum Reactor Experimental Myomer Leg Long-range Sensor Array Point Defense Array Plasma Rifle Cooled Plasma Rifle Dispersion Rifle Enhanced Quantum Rifle Advanced Remote Datajack Molecular Deconstructor Peak State ------------ > --- POWER ------------ Heavy Antimatter Reactor Heavy Antimatter Reactor > --- PROPULSION ------- Experimental Myomer Leg Myomer Exoskeleton > --- UTILITY ---------- Advanced Heat Sink Advanced Heat Sink Large Storage Unit Advanced Energy Well Advanced Signal Interpreter Advanced Targeting Computer Advanced Target Analyzer Advanced Weapon Cycler Advanced Transmission Jammer SHELL Armor Antimissile System Advanced Hacking Suite Advanced System Shield > --- WEAPON ----------- Enhanced Gamma Rifle Enhanced Quantum Rifle Enhanced Quantum Rifle Enhanced Quantum Rifle Enhanced Quantum Rifle > --- INVENTORY -------- Heavy Antimatter Reactor Quantum Reactor Experimental Myomer Leg Long-range Sensor Array Point Defense Array Plasma Rifle Cooled Plasma Rifle Dispersion Rifle Enhanced Quantum Rifle Advanced Remote Datajack Molecular Deconstructor [Rating: 221] Favorites ----------- Power Heavy Antimatter Reactor Engine Cooled Deuterium Engine Power Core Neutrino Core Reactor Heavy Antimatter Reactor Propulsion Advanced Treads Treads Advanced Treads Leg Advanced Myomer Leg Utility Large Storage Unit Device Advanced Heat Sink Storage Large Storage Unit Processor Advanced Targeting Computer Hackware Advanced Hacking Suite Protection Centrium Medium Armor Plating Weapon Gatling Laser Energy Gun Gatling Laser Energy Cannon HERF Cannon Ballistic Gun Minigun Ballistic Cannon Improved Light Cannon Launcher Micro-nuke Launcher Special Weapon Plasma Flamer Impact Weapon Heavy Mace Build | -11 -10 -10 -9 -9 -8 -8 -8 -7 -7 -7 -7 -6 -6 -6 -6 -6 -6 -5 -5 -5 -5 -4 -4 -4 -4 -4 -3 -3 -3 -2 -1 ------- Run | Yrd Mat Min Mat Min Mat Gar Mat Fac Low Low Dat Pro Fac Ext Cet Arc Hub Fac Upp Upp Zhi Pro Fac Upp Upp War Pro Res Tes Res Acc Slots Evolved 18 | . . . 2 . 2 . . 2 . . . . 2 . . . . 2 . . . . 2 . . . . 2 . 2 2 Power 1 | . . . . . . . . . . . . . . . . . . . . . . . . . . . . 1 . . . Propulsion 2 | . . . . . 1 . . . . . . . . . . . . 1 . . . . . . . . . . . . . Utility 13 | . . . 1 . 1 . . 2 . . . . 2 . . . . 1 . . . . 2 . . . . 1 . 1 2 Weapon 2 | . . . 1 . . . . . . . . . . . . . . . . . . . . . . . . . . 1 . Parts Attached 425 | 7 19 . 27 7 22 11 15 17 8 . . 8 14 21 3 7 9 24 1 3 10 14 55 13 1 19 6 8 33 5 38 Power 21 | 1 3 . 3 . 1 1 . 1 . . . . . 1 . 1 . . . . 1 . 2 . . 1 . 1 3 . 1 Engine 12 | 1 3 . 3 . 1 1 . 1 . . . . . 1 . . . . . . . . 1 . . . . . . . . Core 1 | . . . . . . . . . . . . . . . . 1 . . . . . . . . . . . . . . . Reactor 8 | . . . . . . . . . . . . . . . . . . . . . 1 . 1 . . 1 . 1 3 . 1 Propulsion 57 | 2 3 . 5 3 6 . 3 . . . . 2 . 4 . . . 9 . 1 5 . 5 1 . 4 . . 4 . . Treads 28 | 2 3 . 5 3 6 . 3 . . . . 2 . 4 . . . . . . . . . . . . . . . . . Leg 29 | . . . . . . . . . . . . . . . . . . 9 . 1 5 . 5 1 . 4 . . 4 . . Wheel . | . . . . . . . . . . . . . . . . . . . . . . . . . . . . . . . . Hover . | . . . . . . . . . . . . . . . . . . . . . . . . . . . . . . . . Flight . | . . . . . . . . . . . . . . . . . . . . . . . . . . . . . . . . Utility 201 | 2 4 . 7 . 4 . 7 9 6 . . 6 10 14 2 4 3 8 . 2 4 9 34 5 . 9 6 6 13 3 24 Device 141 | 1 3 . 5 . . . 1 4 4 . . 3 8 11 . 4 3 5 . 2 2 8 25 3 . 5 5 5 11 3 20 Storage 8 | 1 1 . 1 . 1 . . . . . . . . . . . . . . . 1 . 1 . . . . . 1 . 1 Processor 10 | . . . 1 . . . . 2 . . . . . . . . . 1 . . . . 3 . . 1 . 1 . . 1 Hackware 5 | . . . . . . . . . . . . . . . . . . 1 . . 1 . . 1 . . . . . . 2 Protection 37 | . . . . . 3 . 6 3 2 . . 3 2 3 2 . . 1 . . . 1 5 1 . 3 1 . 1 . . Artifact . | . . . . . . . . . . . . . . . . . . . . . . . . . . . . . . . . Weapon 146 | 2 9 . 12 4 11 10 5 7 2 . . . 4 2 1 2 6 7 1 . . 5 14 7 1 5 . 1 13 2 13 Energy Gun 60 | 1 . . 1 . 1 . 1 5 1 . . . 3 2 1 1 4 4 1 . . 2 7 3 . 3 . . 8 2 9 Energy Cannon 6 | . . . 1 . . . . . . . . . . . . . . . . . . . 5 . . . . . . . . Ballistic Gun 26 | 1 . . 3 3 9 5 4 . . . . . . . . 1 . . . . . . . . . . . . . . . Ballistic Cannon 14 | . 8 . 6 . . . . . . . . . . . . . . . . . . . . . . . . . . . . Launcher 13 | . . . . 1 1 2 . . . . . . 1 . . . 1 . . . . . . 2 . 1 . . 2 . 2 Special Weapon 3 | . . . . . . . . . . . . . . . . . . . . . . 1 . . . . . . 1 . 1 Impact Weapon 24 | . 1 . 1 . . 3 . 2 1 . . . . . . . 1 3 . . . 2 2 2 1 1 . 1 2 . 1 Slashing Weapon . | . . . . . . . . . . . . . . . . . . . . . . . . . . . . . . . . Piercing Weapon . | . . . . . . . . . . . . . . . . . . . . . . . . . . . . . . . . Special Melee Weapon . | . . . . . . . . . . . . . . . . . . . . . . . . . . . . . . . . Unidentified Prototypes 22 | . . . 2 . 1 . . 1 1 . . . . . 1 . . 1 . . 4 1 3 . . 3 . . 3 . 1 Parts Lost 49 | . 2 . 2 . . 1 2 . . . . . 3 1 . . . . . . . 3 8 4 . . . . 4 . 19 Power 5 | . . . . . . 1 . . . . . . . . . . . . . . . . 1 . . . . . 1 . 2 Propulsion 4 | . 1 . . . . . . . . . . . . . . . . . . . . . . 2 . . . . . . 1 Utility 18 | . . . . . . . 1 . . . . . 2 1 . . . . . . . . 4 2 . . . . 1 . 7 Weapon 22 | . 1 . 2 . . . 1 . . . . . 1 . . . . . . . . 3 3 . . . . . 2 . 9 Highest Loss Streak 9 | . 2 . 1 . . 1 1 . . . . . 2 1 . . . . . . . 1 2 3 . . . . 3 . 9 To Critical Strikes 1 | . . . . . . . . . . . . . . . . . . . . . . . . . . . . . . . 1 Average Slot Usage (%) 96 | . 97 100 99 100 93 90 96 100 99 100 100 100 99 95 98 100 100 99 100 100 99 99 95 92 95 98 100 100 91 83 83 Engine 4 | . 13 14 11 11 9 9 9 7 7 7 7 7 6 6 6 3 . . . . . . . . . . . . . . . Reactor 2 | . . . . . . . . . . . . . . . . . . . . . 1 5 4 5 5 5 5 9 8 8 6 Treads 12 | . 27 28 22 22 27 27 27 23 22 21 21 21 18 18 18 18 18 1 . . . . . . . . . . . . . Leg 7 | . . . . . . . . . . . . . . . . . . 19 22 22 21 22 20 14 15 18 20 18 15 8 6 Device 15 | . 13 14 11 11 2 . . 15 14 14 14 13 17 17 18 18 18 16 16 16 15 15 21 24 25 22 15 18 17 20 21 Storage 6 | . 14 14 11 11 9 9 9 7 7 7 7 7 6 6 6 6 6 5 5 5 5 5 5 5 5 5 5 4 4 4 4 Processor 10 | . . . 10 11 9 9 9 7 14 14 14 14 12 12 12 12 12 11 11 11 11 11 11 15 15 15 15 13 13 12 11 Hackware 2 | . . . . . . . . . . . . . . . . . . 4 5 5 5 5 5 4 5 5 5 4 4 4 5 Protection 7 | . . . . . 9 9 15 15 7 7 7 7 12 8 10 12 12 11 11 11 11 11 7 3 5 7 14 13 7 4 2 Energy Gun 14 | . 2 . . . . . . 22 22 21 21 21 18 23 25 22 24 20 21 22 22 17 11 18 17 15 20 14 16 20 15 Ballistic Gun 4 | . 2 . 13 33 26 26 26 . . . . . . . . 2 . . . . . . . . . . . . . . . Ballistic Cannon 1 | . 19 14 16 . . . . . . . . . . . . . . . . . . . . . . . . . . . . Impact Weapon 2 | . 2 14 1 . . . . . . 7 7 7 6 1 . . . . . . . 2 3 . 3 4 . 2 . . 2 Peak Build Rating 221 | 7 10 9 21 20 36 37 37 49 51 51 51 53 59 68 76 78 78 95 91 95 101 103 121 122 109 122 122 136 169 182 221 Average Rating 81 | 5 9 9 17 19 34 36 31 45 48 51 51 52 58 61 74 77 76 89 90 91 95 99 110 109 109 114 121 134 150 180 197 On Entrance 72 | . 7 9 9 20 20 36 37 32 49 51 51 51 53 59 68 76 76 76 90 91 91 101 96 121 109 109 119 121 136 169 182 Naked Turns . | . . . . . . . . . . . . . . . . . . . . . . . . . . . . . . . . Heaviest Build 131 | 15 24 20 39 38 51 52 52 59 59 56 56 63 71 71 67 67 68 67 67 67 67 67 105 72 65 75 80 99 107 113 131 Greatest Support 125 | 40 40 40 43 43 84 84 84 66 66 66 66 74 74 80 80 80 80 89 76 76 98 98 98 80 80 115 115 115 125 125 125 Greatest Overweight (x) 4 | . 4 . . . . . . . . . . . . . . . . 1 . . 1 . 1 1 . . . . . . 1 Average Overweight (x) . | . . . . . . . . . . . . . . . . . . . . . . . . . . . . . . . . Largest Inventory Capacity 15 | 8 10 10 15 15 15 15 15 15 15 15 15 15 15 15 15 15 15 15 15 15 15 15 15 15 15 15 15 15 15 15 15 Average Capacity 14 | 7 9 10 12 15 15 15 15 15 15 15 15 15 15 15 15 15 15 15 15 15 15 15 15 15 15 15 15 15 15 15 15 Most Carried 15 | 6 10 10 15 15 15 15 15 15 15 15 15 15 15 15 15 15 15 15 15 15 15 15 15 15 15 15 15 15 15 15 15 Average Carried 14 | 4 7 9 11 14 14 14 14 14 14 14 15 15 13 14 14 14 14 14 15 14 15 13 14 14 15 14 15 14 14 14 13 Final Capacity 15 | 8 10 10 15 15 15 15 15 15 15 15 15 15 15 15 15 15 15 15 15 15 15 15 15 15 15 15 15 15 15 15 15 Final Carried 15 | 6 8 10 15 15 15 14 15 15 14 15 15 15 12 15 14 15 15 15 15 15 15 15 15 15 15 15 15 15 15 15 11 Class Distribution -------------------- 21% | Gunner 19% | Tank 12% | Scavenger-Gunner 9% | Scavenger-Tank 9% | Skirmisher 8% | Mutant 5% | Commander-Gunner 5% | Commander-Tank 3% | Hacker-Gunner Dominant Class ---------------- Mutant | -10/Materials Mutant | -10/Mines Gunner | -9/Materials Gunner | -9/Mines Gunner | -8/Materials Gunner | -8/Garrison Tank | -8/Materials Tank | -7/Factory Skirmisher | -7/Lower Caves Skirmisher | -7/Lower Caves Skirmisher | -7/Data Miner Skirmisher | -6/Proximity Caves Tank | -6/Factory Commander-Gunner | -6/Extension Commander-Tank | -6/Cetus Commander-Tank | -6/Archives Commander-Tank | -6/Hub_04(d) Scavenger-Tank | -5/Factory Scavenger-Tank | -5/Upper Caves Scavenger-Tank | -5/Upper Caves Tank | -5/Zhirov Tank | -4/Proximity Caves Skirmisher | -4/Factory Gunner | -4/Upper Caves Gunner | -4/Upper Caves Gunner | -4/Warlord Commander-Gunner | -3/Proximity Caves Scavenger-Gunner | -3/Research Scavenger-Gunner | -3/Testing Scavenger-Gunner | -2/Research Hacker-Gunner | -1/Access Resources | -11 -10 -10 -9 -9 -8 -8 -8 -7 -7 -7 -7 -6 -6 -6 -6 -6 -6 -5 -5 -5 -5 -4 -4 -4 -4 -4 -3 -3 -3 -2 -1 ----------- Run | Yrd Mat Min Mat Min Mat Gar Mat Fac Low Low Dat Pro Fac Ext Cet Arc Hub Fac Upp Upp Zhi Pro Fac Upp Upp War Pro Res Tes Res Acc Matter Collected 7683 | 233 247 258 1051 120 986 253 861 171 88 40 . 80 97 329 59 80 90 318 30 30 110 145 516 281 20 190 20 68 474 59 379 Remotely 140 | . 44 . 96 . . . . . . . . . . . . . . . . . . . . . . . . . . . . Salvage Created 16955 | 18 265 127 893 24 1170 298 998 570 102 . . 195 623 786 60 39 853 523 66 60 409 1103 1930 613 . 453 . 206 1439 319 2813 Parts 596 | 4 14 4 52 6 65 18 54 30 3 . . 11 31 16 1 3 22 21 4 1 9 20 53 12 . 8 . 7 43 7 77 Haulers Intercepted 25 | . . . 5 . 4 . 3 3 . . . . . . . . 2 1 . . . . 3 . . . . . . 2 2 Recyclers Shooed 12 | . 1 . 4 . . . . 1 . . . . 2 . . . . 1 . . . . 1 . . . . . . . 2 Parts Field Recycled . | . . . . . . . . . . . . . . . . . . . . . . . . . . . . . . . . Retrieved Matter . | . . . . . . . . . . . . . . . . . . . . . . . . . . . . . . . . Parts Self-Destructed 56 | . . . . . . . . . 3 . . 11 . . . . . . 5 1 8 22 . 6 . . . . . . . Prevented . | . . . . . . . . . . . . . . . . . . . . . . . . . . . . . . . . Kills | -11 -10 -10 -9 -9 -8 -8 -8 -7 -7 -7 -7 -6 -6 -6 -6 -6 -6 -5 -5 -5 -5 -4 -4 -4 -4 -4 -3 -3 -3 -2 -1 ------- Run | Yrd Mat Min Mat Min Mat Gar Mat Fac Low Low Dat Pro Fac Ext Cet Arc Hub Fac Upp Upp Zhi Pro Fac Upp Upp War Pro Res Tes Res Acc Combat Hostiles Destroyed 267 | . 7 . 21 6 17 11 17 8 2 . . 7 14 14 1 . 8 7 3 1 . 21 24 14 . 6 . 3 18 1 36 Melee 2 | . . . . . . . . . . . . . . . . . . . . . . . 2 . . . . . . . . Guns 164 | . 5 . 5 3 17 4 17 7 2 . . 6 10 10 . . 6 5 3 . . 15 14 3 . 2 . 2 11 . 17 Cannons 20 | . 2 . 16 . . . . . . . . . . . . . . . . . . . 2 . . . . . . . . AOE 36 | . . . . 3 . 7 . . . . . . 3 . . . . . . . . . 1 9 . . . . 2 . 11 Classes Destroyed 25 | 1 6 . 3 1 2 . 1 1 1 . . 1 . 1 . . 2 1 . . . 1 . . . 1 . . 1 . 1 Worker 11 | . 1 . . . 1 . . 1 . . . . . . . . 6 . . . . . . . . . . . 1 . 1 Builder 13 | . 1 . . . . . 2 1 . . . . 5 . . . . 1 . . . . 1 . . . . . . . 2 Tunneler 5 | 1 . 2 . . . . . . . . . . . . . . . . . . . . . . . . . . . . 2 Hauler 25 | . . . 5 . 4 . 3 3 . . . . . . . . 2 1 . . . . 3 . . . . . . 2 2 Recycler 9 | . 1 1 1 . 1 . . . . . . . . . . . 1 . . . . . 1 . . . . . 2 . 1 Minesweeper 1 | . . . . . . . . . 1 . . . . . . . . . . . . . . . . . . . . . . Mechanic 2 | . . . . . . . . . . . . . . . . . 1 . . . . . . . . . . . . . 1 Operator 8 | . 1 . . . 1 . 1 1 . . . . . . . 1 1 . . . . . 1 . . . . . . . 1 Drone 2 | . . . . . . . . . . . . 2 . . . . . . . . . . . . . . . . . . . Watcher 20 | . . . . . 2 . 1 2 . . . . 1 1 . . 1 4 . . . . 3 . . . . . . 1 4 Swarmer 37 | . 1 . . 5 2 4 2 . . . . 2 4 . . . . . 3 . . 4 3 2 . . . . . . 5 Saboteur 1 | . . . . . . . . . . . . . . . . . . 1 . . . . . . . . . . . . . Grunt 102 | . 6 . 14 . 9 6 4 5 1 . . 2 3 6 . . 2 2 . . . 10 6 9 . 2 . . 6 . 9 Brawler 6 | . . . . . . . 1 1 . . . . . 1 . . . 1 . . . 1 . . . 1 . . . . . Duelist 13 | . . . 2 . 1 . 2 . . . . 1 . . . . 2 1 . . . 2 1 1 . . . . . . . Protector 1 | . . . . . . . . . . . . . . . . . . . . . . 1 . . . . . . . . . Researcher 1 | . . . . . . . . . . . . . . . . . . . . . . . . . . . . . 1 . . Sentry 32 | . . . 5 . 3 . 7 . . . . . 2 5 . . 2 . . 1 . 1 2 1 . . . . 1 . 2 Demolisher 1 | . . . . . . . . . . . . . . . . . 1 . . . . . . . . . . . . . . Hunter 24 | . . . . . 2 1 1 . . . . . 2 . . . . 2 . . . 2 1 . . . . . 3 . 10 Programmer 36 | . . . . . . . . 2 1 . . . 3 . . . . . . . . . 11 1 . 1 . 3 8 . 6 Q-Series 4 | . . . . . . . . . . . . . . . . . . . . . . . . . . . . . . . 4 Behemoth 2 | . . . . . . . . . . . . . . 2 . . . . . . . . . . . . . . . . . Cetus Guard 1 | . . . . . . . . . . . . . . . 1 . . . . . . . . . . . . . . . . Enhanced Grunt 1 | . . . . . . . . . . . . . . . . . 1 . . . . . . . . . . . . . . Striker 3 | . . . . . . . . . . . . . . . . . . . . . . . . . . 2 . . . 1 . Assembled 1 | . . . . 1 . . . . . . . . . . . . . . . . . . . . . . . . . . . Savage 1 | . . . . . . . . . . . . . . . . . 1 . . . . . . . . . . . . . . Best Kill Streak 13 | 1 3 2 3 4 5 4 3 3 3 . . 3 10 4 1 1 6 5 3 1 . 12 4 9 . 3 . 3 8 1 13 Combat Bots Only 12 | . 3 . 3 4 4 4 2 3 2 . . 3 7 4 1 . 3 5 3 1 . 12 4 9 . 3 . 3 4 1 12 Max Kills in Single Turn 4 | 1 1 1 2 2 2 4 2 2 1 . . 2 3 1 1 1 4 1 1 1 . 2 2 4 . 1 . 1 2 1 4 Gunslinging 1 | . . . . . . . . . . . . 1 . . . . . . . . . 1 . . . . . . . . . Exploded 4 | . . . . 2 . 4 . . . . . . 3 . . . . . . . . . 1 4 . . . . 1 . 3 Melee 1 | . . . . . . . . . . . . . . . . . . . . . . . 1 . . . . . . . . Uniques/NPCs Destroyed . | . . . . . . . . . . . . . . . . . . . . . . . . . . . . . . . . Combat | -11 -10 -10 -9 -9 -8 -8 -8 -7 -7 -7 -7 -6 -6 -6 -6 -6 -6 -5 -5 -5 -5 -4 -4 -4 -4 -4 -3 -3 -3 -2 -1 -------- Run | Yrd Mat Min Mat Min Mat Gar Mat Fac Low Low Dat Pro Fac Ext Cet Arc Hub Fac Upp Upp Zhi Pro Fac Upp Upp War Pro Res Tes Res Acc Hostile Shots Fired 1590 | . 47 . 73 12 86 52 41 12 4 . . 14 90 100 2 4 31 21 10 2 . 197 167 41 . 12 . 22 82 2 466 Missed 570 | . 18 . 17 5 26 11 11 5 2 . . 4 35 40 . 2 14 7 3 . . 87 75 14 . 6 . 6 27 1 154 Damage Taken 18392 | . 420 . 708 74 899 617 495 289 30 . . 163 996 799 48 63 494 188 106 43 . 1537 1909 466 . 130 . 269 1126 34 6489 Core 1419 | . . . 108 7 86 46 19 16 . . . 31 99 50 . . 61 60 18 . . 159 113 38 . 22 . 32 47 . 407 Absorbed by Shields 1499 | . . . . . . . . . . . . . 152 . 22 . . . . . . 102 98 110 . 42 . 99 229 . 645 Regen/Repaired (Parts) 2093 | . . . . . . . . . . . . . . . . . . . . . . . . . . 108 . . 275 . 1710 Core Remaining (%) 85 | 100 . 100 . 71 . . 72 . . . . 93 . . . . 75 . . . . 67 . . . . 84 . 93 100 . Volleys Fired 668 | 2 40 . 59 5 65 20 48 23 4 . . 14 24 29 4 4 25 14 3 1 5 34 59 18 . 19 . 9 43 7 90 Largest 5 | 2 2 . 3 3 3 3 3 3 3 . . 3 3 4 4 4 4 4 4 4 4 4 4 4 . 4 . 3 4 5 5 Hottest 380 | 60 78 . 138 69 75 75 111 240 240 . . 240 240 320 320 320 320 320 320 320 320 340 300 305 . 300 . 225 305 380 380 Shots Fired 2107 | 4 73 . 166 11 193 52 141 69 12 . . 42 70 107 16 7 82 55 12 4 20 123 186 45 . 76 . 27 152 35 327 Gun 1873 | 4 32 . 51 9 192 48 141 69 12 . . 42 69 107 16 7 76 55 12 4 20 117 155 37 . 76 . 27 145 35 315 Cannon 173 | . 41 . 115 . . . . . . . . . . . . . . . . . . . 17 . . . . . . . . Launcher 38 | . . . . 2 1 4 . . . . . . 1 . . . 6 . . . . . . 8 . . . . 5 . 11 Special 23 | . . . . . . . . . . . . . . . . . . . . . . 6 14 . . . . . 2 . 1 Kinetic 609 | 2 57 . 161 9 192 48 137 . . . . . . . . 3 . . . . . . . . . . . . . . . Thermal 1405 | . . . 5 . . . 4 69 12 . . 42 69 107 16 4 76 55 12 4 20 123 169 37 . 76 . 27 145 35 298 Explosive 38 | . . . . 2 1 4 . . . . . . 1 . . . 6 . . . . . . 8 . . . . 5 . 11 Electromagnetic 52 | 2 16 . . . . . . . . . . . . . . . . . . . . . 17 . . . . . . . 17 Robot Hit Streak 27 | 3 8 . 13 4 13 10 12 27 8 . . 11 24 21 7 8 21 16 12 11 14 22 18 11 . 21 . 10 17 8 24 Robot Miss Streak 6 | . 4 . 3 1 5 4 3 5 1 . . 6 3 3 2 1 4 3 1 1 2 3 5 2 . 3 . 1 6 4 5 Penetration Max . | . . . . . . . . . . . . . . . . . . . . . . . . . . . . . . . . Secondary Targets 28 | . . . . 1 1 . 1 . . . . 2 3 4 . . . 2 . . . 6 1 1 . . . . 2 . 4 Max Gunslinging Chain 1 | . . . . 1 1 . 1 . . . . 1 1 1 . . . 1 . . . 1 1 1 . . . . 1 . 1 Shots Hit Robots 1522 | 3 52 3 102 5 120 36 88 51 11 . . 35 64 96 16 6 64 44 3 4 9 111 139 30 . 57 . 23 107 20 223 Core Hits 923 | 1 13 1 38 6 44 17 44 40 9 . . 20 51 68 8 6 65 39 6 3 14 103 81 30 . 13 . 9 69 6 119 Critical Kills 2 | . . . . . . . 1 . . . . . . . . . . . . . . . 1 . . . . . . . . Critical Parts Destroyed 6 | . . . . . 2 1 . . . . . . . . . . . . . . . . 2 . . . . . . . 1 Critical Strikes 86 | . 2 . 5 . 2 1 1 . . . . . . . . . . . . . . 1 16 4 . 10 . 5 12 4 23 Burn 69 | . . . . . . . . . . . . . . . . . . . . . . 1 13 4 . 10 . 5 12 4 20 Destroy 4 | . . . . . 2 1 1 . . . . . . . . . . . . . . . . . . . . . . . . Blast 7 | . 2 . 5 . . . . . . . . . . . . . . . . . . . . . . . . . . . . Corrupt 2 | . . . . . . . . . . . . . . . . . . . . . . . . . . . . . . . 2 Smash 4 | . . . . . . . . . . . . . . . . . . . . . . . 3 . . . . . . . 1 Melee Attacks 115 | . 9 3 6 . . 4 . 2 1 . . . 16 3 . . . 6 . . . 6 32 5 1 6 . 3 4 . 8 Impact 115 | . 9 3 6 . . 4 . 2 1 . . . 16 3 . . . 6 . . . 6 32 5 1 6 . 3 4 . 8 Slashing . | . . . . . . . . . . . . . . . . . . . . . . . . . . . . . . . . Piercing . | . . . . . . . . . . . . . . . . . . . . . . . . . . . . . . . . Sneak Attacks 16 | . 5 3 1 . . . . . . . . . 2 . . . . 1 . . . . 2 . . . . . . . 2 Combat Hostiles . | . . . . . . . . . . . . . . . . . . . . . . . . . . . . . . . . Follow-up Attacks . | . . . . . . . . . . . . . . . . . . . . . . . . . . . . . . . . Damage Inflicted 44139 | 38 1214 167 2088 248 2020 1113 1549 1280 282 . . 563 2031 2403 403 164 2803 1255 91 122 289 2834 4327 2240 . 1359 . 570 3057 558 9071 Guns 31515 | 38 234 . 479 63 1964 531 1541 1262 282 . . 563 1557 2396 403 164 1687 1131 91 122 289 2777 2779 548 . 1359 . 570 2515 558 5612 Cannons 2526 | . 572 . 1537 . . . . . . . . . . . . . . . . . . . 417 . . . . . . . . Explosions 8185 | . 68 . . 185 . 582 . . . . . . 285 . . . 1088 . . . . . 463 1692 . . . . 525 . 3297 Melee 1411 | . 337 167 50 . . . . . . . . . 189 . . . . 96 . . . . 410 . . . . . . . 162 Ramming 288 | . 3 . 22 . 56 . 8 18 . . . . . 7 . . 28 28 . . . . 101 . . . . . 17 . . Kinetic 6793 | 14 691 . 1982 63 1964 531 1492 . . . . . . . . 56 . . . . . . . . . . . . . . . Thermal 26827 | . 68 . 34 . . . 49 1262 282 . . 563 1557 2396 403 108 1687 1131 91 122 289 2834 3181 548 . 1359 . 570 2515 558 5220 Explosive 6624 | . . . . 185 . 582 . . . . . . 285 . . . 58 . . . . . . 1692 . . . . 525 . 3297 Electromagnetic 2196 | 24 115 . . . . . . . . . . . . . . . 1030 . . . . . 635 . . . . . . . 392 Impact 1411 | . 337 167 50 . . . . . . . . . 189 . . . . 96 . . . . 410 . . . . . . . 162 Slashing . | . . . . . . . . . . . . . . . . . . . . . . . . . . . . . . . . Piercing . | . . . . . . . . . . . . . . . . . . . . . . . . . . . . . . . . Highest Corruption 11 | . . . . . . . . . . . . . 5 5 5 5 1 . . . . . 7 2 2 2 . . 3 . 11 Average Corruption 3 | . . . . . . . . . . . . . 1 5 5 4 1 . . . . . 4 1 2 2 . . 2 . 2 Corruption Purged 12 | . . . . . . . . . . . . . . . . 5 . . . . . . 7 . . . . . . . . Corruption Blocked . | . . . . . . . . . . . . . . . . . . . . . . . . . . . . . . . . Effects 113 | . . . . . . . . . . . . . 3 37 9 5 . . . . . . 24 3 3 . . . 11 . 18 Message Errors 31 | . . . . . . . . . . . . . 1 6 3 2 . . . . . . 9 1 1 . . . 2 . 6 Matter Fused 27 | . . . . . . . . . . . . . 1 14 2 1 . . . . . . 3 1 1 . . . 2 . 2 Heat Flow Errors 13 | . . . . . . . . . . . . . . 6 2 . . . . . . . 1 . . . . . 1 . 3 Energy Discharges 13 | . . . . . . . . . . . . . . 4 1 1 . . . . . . 5 . . . . . . . 2 Parts Rejected 1 | . . . . . . . . . . . . . . . 1 . . . . . . . . . . . . . . . . Parts Fused 1 | . . . . . . . . . . . . . . . . . . . . . . . . . . . . . . . 1 Data Loss (minor) 11 | . . . . . . . . . . . . . 1 4 . 1 . . . . . . 1 . 1 . . . 2 . 1 Data Loss (major) 3 | . . . . . . . . . . . . . . 1 . . . . . . . . . . . . . . 2 . . Misfires 8 | . . . . . . . . . . . . . . 1 . . . . . . . . 4 . . . . . 1 . 2 Alerts 2 | . . . . . . . . . . . . . . . . . . . . . . . . 1 . . . . 1 . . Weapon Failures 3 | . . . . . . . . . . . . . . 1 . . . . . . . . 1 . . . . . . . 1 Overload Shots . | . . . . . . . . . . . . . . . . . . . . . . . . . . . . . . . . Overflow Damage 1208 | . 132 81 25 . . 37 . . . . . . 173 . . . . 74 . . . . 242 127 . . . . 48 . 269 Projectiles 25 | . . . 25 . . . . . . . . . . . . . . . . . . . . . . . . . . . . Explosions 466 | . 20 . . . . 37 . . . . . . 36 . . . . . . . . . 71 127 . . . . 48 . 127 Melee 717 | . 112 81 . . . . . . . . . . 137 . . . . 74 . . . . 171 . . . . . . . 142 Knockbacks 30 | . 7 1 17 . 1 . . 1 . . . . . . . . . 1 . . . . 1 . . . . . . . 1 Impact 9 | . 2 1 1 . 1 . . 1 . . . . . . . . . 1 . . . . 1 . . . . . . . 1 Kinetic 18 | . 4 . 14 . . . . . . . . . . . . . . . . . . . . . . . . . . . . Secondary 3 | . 1 . 2 . . . . . . . . . . . . . . . . . . . . . . . . . . . . Self-Inflicted Damage 452 | . . . . 16 . . . . . . . . . . . . 186 . . . . . 143 14 . . . . 71 . 22 Shots 8 | . . . . 1 . . . . . . . . . . . . 2 . . . . . 2 1 . . . . 1 . 1 Rammed 18 | . 1 . 6 . 4 . 3 2 . . . . . 1 . . 1 . . . . . . . . . . . . . . Targets Rammed 31 | . 1 . 6 . 4 . 3 2 . . . . . 1 . . 1 2 . . . . 8 . . . . . 3 . . Kicked 13 | . . . . . . . . . . . . . . . . . . 2 . . . . 8 . . . . . 3 . . Crushed . | . . . . . . . . . . . . . . . . . . . . . . . . . . . . . . . . Highest Temperature 399 | . 293 . 334 . 344 310 187 183 102 . . 222 187 148 49 . . 12 12 . . . 154 . . 175 . . 200 . 399 Average Temperature 82 | . 112 . 72 . 85 106 57 52 49 . . 84 69 58 29 . . 12 12 . . . 41 . . 65 . . 86 . 106 Received Heat Transfer 3071 | . 225 . 381 . 369 306 117 45 . . . 45 103 183 . 9 48 9 . 9 . 325 151 80 . 6 . 30 148 . 482 Effects 5 | . . . . . 3 1 . . . . . . . . . . . . . . . . . . . . . . . . 1 Energy Bleed 2 | . . . . . . 1 . . . . . . . . . . . . . . . . . . . . . . . . 1 Interference 3 | . . . . . 3 . . . . . . . . . . . . . . . . . . . . . . . . . . Siege Activations . | . . . . . . . . . . . . . . . . . . . . . . . . . . . . . . . . Robots Corrupted 11 | . 2 1 . . . . . . . . . . 1 . . . 2 . . . . . 3 . . . . . . . 2 Combat Hostiles 2 | . . . . . . . . . . . . . . . . . 1 . . . . . 1 . . . . . . . . Parts Fried 30 | . 4 5 . . . . . . . . . . 4 . . . 6 2 . . . . 5 . . . . . . . 4 Impact Corruptions 26 | . 6 3 . . . . . . . . . . 4 . . . . 3 . . . . 5 . . . . . . . 5 Robots Melted 48 | . . . . . . . . 2 . . . 1 1 4 1 . 1 2 . 1 . 6 5 2 . 4 . 1 6 2 9 Combat Hostiles 43 | . . . . . . . . 1 . . . 1 1 4 1 . 1 2 . 1 . 6 4 2 . 4 . 1 5 1 8 Parts Melted 253 | . . . . . . . . 10 2 . . 1 12 14 3 . 5 9 . 1 . 19 28 10 . 24 . 7 34 3 71 Heat Transferred 63336 | . 150 . 74 . . . 111 2775 575 . . 1275 3400 5400 925 250 3775 2550 200 275 492 6231 8200 1600 . 3755 . 1700 6700 1511 11412 Parts Sabotaged . | . . . . . . . . . . . . . . . . . . . . . . . . . . . . . . . . Parts Stolen . | . . . . . . . . . . . . . . . . . . . . . . . . . . . . . . . . Parts Stripped . | . . . . . . . . . . . . . . . . . . . . . . . . . . . . . . . . Power Chain Reactions 4 | . 1 . . . . . . . . . . . . . . . 2 . . . . . 1 . . . . . . . . Alert | -11 -10 -10 -9 -9 -8 -8 -8 -7 -7 -7 -7 -6 -6 -6 -6 -6 -6 -5 -5 -5 -5 -4 -4 -4 -4 -4 -3 -3 -3 -2 -1 ------- Run | Yrd Mat Min Mat Min Mat Gar Mat Fac Low Low Dat Pro Fac Ext Cet Arc Hub Fac Upp Upp Zhi Pro Fac Upp Upp War Pro Res Tes Res Acc Peak Influence 2526 | 5 251 14 186 183 381 394 549 187 . . . . 739 669 548 444 2526 1281 . . . . 556 . . . . 292 836 404 814 Initial 1237 | . 3 4 1 45 . 110 191 73 . . . . 450 288 374 219 155 1237 . . . . 90 . . . . . 164 383 50 Average 333 | 1 96 5 75 104 182 244 309 69 . . . . 497 311 528 425 1176 956 . . . . 228 . . . . 73 676 243 239 Maximum Alert Level 5 | . 1 . . . 1 1 2 . . . . . 3 2 2 2 5 4 . . . . 2 . . . . 1 3 2 3 Low Security (%) 48 | 100 75 100 100 100 65 47 32 100 . . . . . 24 . . 9 . . . . . 47 . . . . 79 . 26 68 Level 1 21 | . 24 . . . 34 52 36 . . . . . . 55 9 10 . . . . . . 41 . . . . 20 7 66 8 Level 2 17 | . . . . . . . 30 . . . . . 97 20 90 89 15 17 . . . . 11 . . . . . 35 6 19 Level 3 7 | . . . . . . . . . . . . . 2 . . . 16 51 . . . . . . . . . . 55 . 3 Level 4 4 | . . . . . . . . . . . . . . . . . 39 30 . . . . . . . . . . . . . Level 5 . | . . . . . . . . . . . . . . . . . 16 . . . . . . . . . . . . . . High Security . | . . . . . . . . . . . . . . . . . . . . . . . . . . . . . . . . Max Security . | . . . . . . . . . . . . . . . . . . . . . . . . . . . . . . . . Squads Dispatched 64 | . 2 . 1 . 4 . 3 3 . . . . 7 2 . . 9 3 . . . 1 11 . . . . 1 6 1 10 Investigation 10 | . . . 1 . 2 . . . . . . . 1 . . . 1 . . . . . 3 . . . . . 1 . 1 Extermination 18 | . . . . . . . . 2 . . . . 2 . . . 1 1 . . . . 6 . . . . 1 1 . 4 Reinforcement 24 | . 2 . . . 2 . . 1 . . . . 2 1 . . 6 1 . . . . 2 . . . . . 4 1 2 Assault 5 | . . . . . . . . . . . . . . 1 . . 1 1 . . . 1 . . . . . . . . 1 Garrison 7 | . . . . . . . 3 . . . . . 2 . . . . . . . . . . . . . . . . . 2 Intercept . | . . . . . . . . . . . . . . . . . . . . . . . . . . . . . . . . Searches Triggered 1 | . . . . . . . . . . . . . 1 . . . . . . . . . . . . . . . . . . Data Miner Redirects 2 | . . . . . . . . . . . . . . . . . . . . . . . 2 . . . . . . . . Construction Impeded 3 | . . . . . . . . . . . . . . 1 . . 1 . . . . . 1 . . . . . . . . Haulers Reinforced 5 | . . . . . . . . 1 . . . . . . . . 1 . . . . . 1 . . . . . . 1 1 Active Scanning Responses . | . . . . . . . . . . . . . . . . . . . . . . . . . . . . . . . . Cargo Convoy Interrupts . | . . . . . . . . . . . . . . . . . . . . . . . . . . . . . . . . Stealth | -11 -10 -10 -9 -9 -8 -8 -8 -7 -7 -7 -7 -6 -6 -6 -6 -6 -6 -5 -5 -5 -5 -4 -4 -4 -4 -4 -3 -3 -3 -2 -1 --------- Run | Yrd Mat Min Mat Min Mat Gar Mat Fac Low Low Dat Pro Fac Ext Cet Arc Hub Fac Upp Upp Zhi Pro Fac Upp Upp War Pro Res Tes Res Acc Distress Signals 33 | . . . . 2 3 . 3 1 . . . . . 3 1 . . 3 . . . . 4 . . . . 1 . 7 5 Communications Jammed 40 | . . . . . . . . . . . . . . . . . . . . . . . . . . . . . . . 40 Distress Signals 40 | . . . . . . . . . . . . . . . . . . . . . . . . . . . . . . . 40 Times Spotted 528 | . 24 . 27 7 45 11 24 14 1 . . 9 16 39 5 6 31 18 5 1 . 25 51 15 . 39 . 9 27 8 71 Peak Tracking Total 17 | . 6 . 5 4 8 5 3 3 1 . . 4 6 6 5 1 4 5 4 1 . 10 7 9 . 11 . 6 5 2 17 Tactical Retreats 25 | . 3 . 1 . 1 . . 1 . . . 1 . 1 . . 6 2 1 . . . 6 1 . . . . . . 1 Traps | -11 -10 -10 -9 -9 -8 -8 -8 -7 -7 -7 -7 -6 -6 -6 -6 -6 -6 -5 -5 -5 -5 -4 -4 -4 -4 -4 -3 -3 -3 -2 -1 ------- Run | Yrd Mat Min Mat Min Mat Gar Mat Fac Low Low Dat Pro Fac Ext Cet Arc Hub Fac Upp Upp Zhi Pro Fac Upp Upp War Pro Res Tes Res Acc Traps Triggered 19 | . 6 . 2 . 4 . 1 1 . . . . 1 . . . . 1 . . . . . . . . . . 1 . 2 Indirectly . | . . . . . . . . . . . . . . . . . . . . . . . . . . . . . . . . Trap Hack Attempts . | . . . . . . . . . . . . . . . . . . . . . . . . . . . . . . . . Triggered . | . . . . . . . . . . . . . . . . . . . . . . . . . . . . . . . . Disarmed . | . . . . . . . . . . . . . . . . . . . . . . . . . . . . . . . . Reprogrammed . | . . . . . . . . . . . . . . . . . . . . . . . . . . . . . . . . Reused . | . . . . . . . . . . . . . . . . . . . . . . . . . . . . . . . . Traps Extracted . | . . . . . . . . . . . . . . . . . . . . . . . . . . . . . . . . Installed . | . . . . . . . . . . . . . . . . . . . . . . . . . . . . . . . . Triggered 14 | . . . . . . . . . . . . . . . . . . . . . . 1 1 . 1 11 . . . . . Most Traps Carried 1 | . . . . . . . . . 1 1 1 1 1 1 1 . . . . . . . . . . . . . . . . Machines | -11 -10 -10 -9 -9 -8 -8 -8 -7 -7 -7 -7 -6 -6 -6 -6 -6 -6 -5 -5 -5 -5 -4 -4 -4 -4 -4 -3 -3 -3 -2 -1 ---------- Run | Yrd Mat Min Mat Min Mat Gar Mat Fac Low Low Dat Pro Fac Ext Cet Arc Hub Fac Upp Upp Zhi Pro Fac Upp Upp War Pro Res Tes Res Acc Machines Disabled 62 | . 3 . 2 3 1 . . . . . . . 1 . . 3 26 . . . . 1 13 2 . . . . 6 . 1 Max in Single Turn 17 | . 1 . 1 3 . . . . . . . . 1 . . 1 17 . . . . 1 7 2 . . . . 4 . 1 Garrison Access 8 | . . . . . . . . . . . . . 1 . . . 1 1 . . . . 2 . . . . . . 2 1 Network Hub 2 | . . . . . . . . . . . . . . . . . 2 . . . . . . . . . . . . . . Machines Repaired . | . . . . . . . . . . . . . . . . . . . . . . . . . . . . . . . . Machines Dismantled . | . . . . . . . . . . . . . . . . . . . . . . . . . . . . . . . . Machines Sabotaged . | . . . . . . . . . . . . . . . . . . . . . . . . . . . . . . . . Overloaded Fab Kills . | . . . . . . . . . . . . . . . . . . . . . . . . . . . . . . . . Hacking | -11 -10 -10 -9 -9 -8 -8 -8 -7 -7 -7 -7 -6 -6 -6 -6 -6 -6 -5 -5 -5 -5 -4 -4 -4 -4 -4 -3 -3 -3 -2 -1 --------- Run | Yrd Mat Min Mat Min Mat Gar Mat Fac Low Low Dat Pro Fac Ext Cet Arc Hub Fac Upp Upp Zhi Pro Fac Upp Upp War Pro Res Tes Res Acc Machines Accessed 79 | . 1 . 4 . 5 1 7 3 . . 3 . 2 2 1 . 3 5 . . 4 . 13 2 . 3 1 1 10 2 6 Terminals 49 | . 1 . 4 . 4 1 6 3 . . . . 1 2 1 . 2 4 . . . . 9 . . . 1 . 6 . 4 Fabricators 3 | . . . . . . . . . . . . . . . . . . . . . . . 1 . . . . . 1 . 1 Repair Stations 2 | . . . . . . . . . . . . . . . . . . . . . . . 1 . . . . . 1 . . Recycling Units . | . . . . . . . . . . . . . . . . . . . . . . . . . . . . . . . . Scanalyzers 3 | . . . . . . . . . . . . . . . . . . . . . . . . . . . . 1 2 . . Garrison Access 10 | . . . . . 1 . 1 . . . . . 1 . . . 1 1 . . . . 2 . . . . . . 2 1 Total Hacks 285 | . 3 . 17 . 14 2 19 5 . . 28 . 3 5 1 . 4 35 . . 17 . 74 5 . 6 2 2 26 2 15 Successful 152 | . . . 12 . 5 . 4 2 . . 28 . 1 1 . . 2 12 . . 17 . 37 5 . 6 2 . 13 2 3 Failed 132 | . 3 . 5 . 9 2 15 3 . . . . 2 4 1 . 2 23 . . . . 36 . . . . 2 13 . 12 Catastrophic 29 | . . . . . 2 . 3 1 . . . . 2 1 . . 1 8 . . . . 8 . . . . 1 1 . 1 Database Lockouts 1 | . . . . . . . . . . . . . . . . . . . . . . . 1 . . . . . . . . Manual 133 | . 2 . 11 . 10 . 14 3 . . . . 1 5 1 . 2 17 . . . 1 41 . . 1 . . 15 . 9 Terminals 199 | . 3 . 17 . 12 2 17 5 . . . . 2 5 1 . 3 34 . . . . 66 . . . 2 . 19 . 11 Fabricators 5 | . . . . . . . . . . . . . . . . . . . . . . . 3 . . . . . 1 . 1 Repair Stations 3 | . . . . . . . . . . . . . . . . . . . . . . . 2 . . . . . 1 . . Recycling Units . | . . . . . . . . . . . . . . . . . . . . . . . . . . . . . . . . Scanalyzers 7 | . . . . . . . . . . . . . . . . . . . . . . . . . . . . 2 5 . . Garrison Access 15 | . . . . . 2 . 2 . . . . . 1 . . . 1 1 . . . . 3 . . . . . . 2 3 Terminal Hacks 115 | . . . 9 . 3 . 3 1 . . 28 . . 1 . . 1 9 . . 17 . 26 5 . 6 2 . 4 . . Record 25 | . . . . . . . . . . . 6 . . . . . . 1 . . 5 . 1 4 . 6 2 . . . . Part Schematic 22 | . . . . . . . . . . . 13 . . . . . . 1 . . 4 . 3 . . . . . 1 . . Robot Schematic 6 | . . . . . . . . . . . 6 . . . . . . . . . . . . . . . . . . . . Robot Analysis 6 | . . . 2 . . . . . . . . . . . . . . . . . 4 . . . . . . . . . . Prototype ID Bank 15 | . . . 2 . 1 . . . . . 3 . . . . . . 1 . . 4 . 4 . . . . . . . . Open Door 2 | . . . . . . . . . . . . . . . . . . . . . . . . 1 . . . . 1 . . Branch Access Points 2 | . . . . . . . . . . . . . . . . . . 1 . . . . 1 . . . . . . . . Machine Index 1 | . . . . . . . . . . . . . . . . . . . . . . . 1 . . . . . . . . Alert Level 3 | . . . . . . . . . . . . . . . . . . 1 . . . . 2 . . . . . . . . Unreport Threat 13 | . . . 2 . 1 . 2 . . . . . . 1 . . 1 3 . . . . 3 . . . . . . . . Locate Traps 7 | . . . 1 . . . 1 1 . . . . . . . . . . . . . . 3 . . . . . 1 . . Recall Investigation 2 | . . . . . . . . . . . . . . . . . . . . . . . 2 . . . . . . . . Recall Extermination 3 | . . . . . . . . . . . . . . . . . . 1 . . . . 2 . . . . . . . . Recall Reinforcements 1 | . . . . . . . . . . . . . . . . . . . . . . . 1 . . . . . . . . Hauler Manifests 1 | . . . 1 . . . . . . . . . . . . . . . . . . . . . . . . . . . . Registered Components 2 | . . . . . . . . . . . . . . . . . . . . . . . 1 . . . . . 1 . . Zone Layout 4 | . . . 1 . 1 . . . . . . . . . . . . . . . . . 2 . . . . . . . . Fabricator Hacks 2 | . . . . . . . . . . . . . . . . . . . . . . . 2 . . . . . . . . Load Schematic 1 | . . . . . . . . . . . . . . . . . . . . . . . 1 . . . . . . . . Build 1 | . . . . . . . . . . . . . . . . . . . . . . . 1 . . . . . . . . Repair Station Hacks . | . . . . . . . . . . . . . . . . . . . . . . . . . . . . . . . . Recycling Unit Hacks . | . . . . . . . . . . . . . . . . . . . . . . . . . . . . . . . . Scanalyzer 2 | . . . . . . . . . . . . . . . . . . . . . . . . . . . . . 2 . . Insert Component 1 | . . . . . . . . . . . . . . . . . . . . . . . . . . . . . 1 . . Analyze 1 | . . . . . . . . . . . . . . . . . . . . . . . . . . . . . 1 . . Garrison Access Hacks 7 | . . . . . 1 . . . . . . . . . . . . 1 . . . . 2 . . . . . . 2 1 Unlock Access 1 | . . . . . 1 . . . . . . . . . . . . . . . . . . . . . . . . . . Seal Access 6 | . . . . . . . . . . . . . . . . . . 1 . . . . 2 . . . . . . 2 1 Unauthorized Hacks 26 | . . . 3 . 1 . 1 1 . . . . 1 . . . 1 2 . . . . 7 . . . . . 7 . 2 Terminals 19 | . . . 3 . 1 . 1 1 . . . . . . . . . 2 . . . . 6 . . . . . 4 . 1 Track 1 | . . . . . . . . . . . . . . . . . . . . . . . 1 . . . . . . . . Assimilate 3 | . . . . . . . 1 . . . . . . . . . . 1 . . . . . . . . . . . . 1 Botnet 14 | . . . 3 . 1 . . 1 . . . . . . . . . 1 . . . . 4 . . . . . 4 . . Operators 1 | . . . . . . . . . . . . . . . . . . . . . . . 1 . . . . . . . . Fabricators 3 | . . . . . . . . . . . . . . . . . . . . . . . 1 . . . . . 1 . 1 Liberate 2 | . . . . . . . . . . . . . . . . . . . . . . . 1 . . . . . . . 1 Recompile 1 | . . . . . . . . . . . . . . . . . . . . . . . . . . . . . 1 . . Repair Stations 1 | . . . . . . . . . . . . . . . . . . . . . . . . . . . . . 1 . . Mechanics 1 | . . . . . . . . . . . . . . . . . . . . . . . . . . . . . 1 . . Recycling Units . | . . . . . . . . . . . . . . . . . . . . . . . . . . . . . . . . Scanalyzers 1 | . . . . . . . . . . . . . . . . . . . . . . . . . . . . . 1 . . Researchers 1 | . . . . . . . . . . . . . . . . . . . . . . . . . . . . . 1 . . Garrison Access 2 | . . . . . . . . . . . . . 1 . . . 1 . . . . . . . . . . . . . . Jam 2 | . . . . . . . . . . . . . 1 . . . 1 . . . . . . . . . . . . . . Data Cores Recovered 4 | . . . . . 1 . 1 1 . . . . . . . . . . . . . . . . . . . . . . 1 Used 1 | . . . . . . . . 1 . . . . . . . . . . . . . . . . . . . . . . . Hacking Detections 53 | . 1 . 4 . 4 1 7 3 . . . . 1 2 1 . 2 4 . . . . 11 . . . . 1 6 . 5 Full Trace Events 4 | . . . . . . . 1 . . . . . . . . . . . . . . . 3 . . . . . . . . Feedback Events . | . . . . . . . . . . . . . . . . . . . . . . . . . . . . . . . . Feedback Blocked . | . . . . . . . . . . . . . . . . . . . . . . . . . . . . . . . . Robot Schematics Acquired 7 | . . . . . . . . . . . 6 . . . . . . . . . . . . . . . . . 1 . . Robots Built . | . . . . . . . . . . . . . . . . . . . . . . . . . . . . . . . . Authchips . | . . . . . . . . . . . . . . . . . . . . . . . . . . . . . . . . Time . | . . . . . . . . . . . . . . . . . . . . . . . . . . . . . . . . Total Robot Build Rating . | . . . . . . . . . . . . . . . . . . . . . . . . . . . . . . . . Part Schematics Acquired 29 | . . . . . . . . . . . 13 . . . . . . 1 . . 4 . 3 . . . . . 8 . . Parts Built 2 | . . . . . . . . . . . . . . . . . . . . . . . 2 . . . . . . . . Authchips . | . . . . . . . . . . . . . . . . . . . . . . . . . . . . . . . . Time 84 | . . . . . . . . . . . . . . . . . . . . . . . 84 . . . . . . . . Total Part Build Rating 8 | . . . . . . . . . . . . . . . . . . . . . . . 8 . . . . . . . . Parts Repaired . | . . . . . . . . . . . . . . . . . . . . . . . . . . . . . . . . Time . | . . . . . . . . . . . . . . . . . . . . . . . . . . . . . . . . Parts Recycled . | . . . . . . . . . . . . . . . . . . . . . . . . . . . . . . . . Recycled Matter . | . . . . . . . . . . . . . . . . . . . . . . . . . . . . . . . . Retrieved Matter . | . . . . . . . . . . . . . . . . . . . . . . . . . . . . . . . . Retrieved Components . | . . . . . . . . . . . . . . . . . . . . . . . . . . . . . . . . Parts Scanalyzed 1 | . . . . . . . . . . . . . . . . . . . . . . . . . . . . . 1 . . Part Schematics Acquired 1 | . . . . . . . . . . . . . . . . . . . . . . . . . . . . . 1 . . Parts Damaged . | . . . . . . . . . . . . . . . . . . . . . . . . . . . . . . . . Bothacking | -11 -10 -10 -9 -9 -8 -8 -8 -7 -7 -7 -7 -6 -6 -6 -6 -6 -6 -5 -5 -5 -5 -4 -4 -4 -4 -4 -3 -3 -3 -2 -1 ------------ Run | Yrd Mat Min Mat Min Mat Gar Mat Fac Low Low Dat Pro Fac Ext Cet Arc Hub Fac Upp Upp Zhi Pro Fac Upp Upp War Pro Res Tes Res Acc Used RIF Installer . | . . . . . . . . . . . . . . . . . . . . . . . . . . . . . . . . Robots Hacked 1 | . . . . . . . . . . . . . . . . . . . . . . . . . . . . . . . 1 Non-combat . | . . . . . . . . . . . . . . . . . . . . . . . . . . . . . . . . Combat . | . . . . . . . . . . . . . . . . . . . . . . . . . . . . . . . . Robot Hacks Applied . | . . . . . . . . . . . . . . . . . . . . . . . . . . . . . . . . Manual 1 | . . . . . . . . . . . . . . . . . . . . . . . . . . . . . . . 1 Relay Couplers Released 4 | . . . . . . . . . . . . . . . . . . . . . . . . . . . . . . . 4 Programmers 4 | . . . . . . . . . . . . . . . . . . . . . . . . . . . . . . . 4 Fabnet Peak Effective % . | . . . . . . . . . . . . . . . . . . . . . . . . . . . . . . . . Robots Rewired 32 | . . . . . . . . . . . . . . 21 . . . . . . . 2 . 2 . 5 . 1 1 . . Allies Hacked 1 | . . . . . . . . . . . . . . . . . 1 . . . . . . . . . . . . . . Hacks Repelled . | . . . . . . . . . . . . . . . . . . . . . . . . . . . . . . . . Allies | -11 -10 -10 -9 -9 -8 -8 -8 -7 -7 -7 -7 -6 -6 -6 -6 -6 -6 -5 -5 -5 -5 -4 -4 -4 -4 -4 -3 -3 -3 -2 -1 -------- Run | Yrd Mat Min Mat Min Mat Gar Mat Fac Low Low Dat Pro Fac Ext Cet Arc Hub Fac Upp Upp Zhi Pro Fac Upp Upp War Pro Res Tes Res Acc Total Allies 55 | . . . . 2 . . . . . . . . . 28 5 . . 1 . . . 2 3 5 . 5 . 1 1 . 2 Largest Group 21 | . . . . 2 1 . . . . . . . . 19 21 21 19 1 . . . 2 3 3 . 5 5 6 4 . 2 Highest-Rated Group 1033 | . . . . 41 31 . . . . . . . . 619 1033 1033 851 10 . . . 96 141 138 . 262 262 326 224 . 264 Highest-Rated Ally 219 | . . . . 31 31 . . . . . . . . 159 159 143 96 10 . . . 49 47 49 . 65 65 65 65 . 219 Total Orders 10 | . . . . . . . . . . . . . . . . . 7 . . . . . . . . . . 2 . . 1 STAY 5 | . . . . . . . . . . . . . . . . . 3 . . . . . . . . . . 1 . . 1 FOLLOW 5 | . . . . . . . . . . . . . . . . . 4 . . . . . . . . . . 1 . . . Ally Attacks 542 | . . . . 4 22 . . . . . . . . 115 29 14 215 . . . . 12 . 6 . 75 . 24 22 . 4 Total Damage 14739 | . . . . 64 335 . . . . . . . . 2204 526 363 6694 . . . . 302 . 150 . 2251 . 843 652 . 355 Kills 100 | . . . . 2 4 . . . . . . . . 20 4 4 45 . . . . 1 . 1 . 9 . 6 4 . . Allies Corrupted 2 | . . . . . . . . . . . . . . . . . 1 . . . . . . . . . . 1 . . . Allies Melted . | . . . . . . . . . . . . . . . . . . . . . . . . . . . . . . . . Intel | -11 -10 -10 -9 -9 -8 -8 -8 -7 -7 -7 -7 -6 -6 -6 -6 -6 -6 -5 -5 -5 -5 -4 -4 -4 -4 -4 -3 -3 -3 -2 -1 ------- Run | Yrd Mat Min Mat Min Mat Gar Mat Fac Low Low Dat Pro Fac Ext Cet Arc Hub Fac Upp Upp Zhi Pro Fac Upp Upp War Pro Res Tes Res Acc Robot Analysis Total 6 | . . . 2 . . . . . . . . . . . . . . . . . 4 . . . . . . . . . . Derelict Logs Recovered 11 | . . 1 . 1 . . . . 2 1 . 2 . . . . . . 1 1 . 1 . 1 . . . . . . . Drone Launches . | . . . . . . . . . . . . . . . . . . . . . . . . . . . . . . . . Drone Recoveries . | . . . . . . . . . . . . . . . . . . . . . . . . . . . . . . . . Exploration | -11 -10 -10 -9 -9 -8 -8 -8 -7 -7 -7 -7 -6 -6 -6 -6 -6 -6 -5 -5 -5 -5 -4 -4 -4 -4 -4 -3 -3 -3 -2 -1 ------------- Run | Yrd Mat Min Mat Min Mat Gar Mat Fac Low Low Dat Pro Fac Ext Cet Arc Hub Fac Upp Upp Zhi Pro Fac Upp Upp War Pro Res Tes Res Acc Turns Passed 26499 | 90 987 548 1404 828 1396 582 1047 1154 554 503 108 1025 806 1570 308 301 1024 1310 372 457 243 1349 2131 714 249 864 550 359 882 1091 1693 Spaces Moved 16180 | 45 500 336 674 485 700 306 556 697 359 337 75 589 350 769 97 140 559 926 292 365 165 711 1420 484 175 569 312 240 607 1043 1297 Core 5 | 4 1 . . . . . . . . . . . . . . . . . . . . . . . . . . . . . . Treads 7668 | 41 499 336 674 485 700 306 556 697 359 337 75 589 350 769 97 140 559 99 . . . . . . . . . . . . . Legs 8507 | . . . . . . . . . . . . . . . . . . 827 292 365 165 711 1420 484 175 569 312 240 607 1043 1297 Wheels . | . . . . . . . . . . . . . . . . . . . . . . . . . . . . . . . . Hover . | . . . . . . . . . . . . . . . . . . . . . . . . . . . . . . . . Flight . | . . . . . . . . . . . . . . . . . . . . . . . . . . . . . . . . Fastest Speed 50 | 50 160 160 160 160 155 160 145 145 145 145 145 145 150 150 155 155 155 120 120 120 120 120 112 110 120 120 120 120 95 95 95 Average Speed 131 | 150 161 160 160 160 159 160 145 145 145 145 145 149 150 150 155 155 155 124 120 120 120 120 114 116 120 120 120 120 108 95 97 Slowest Speed 250 | 160 250 160 160 160 160 160 160 145 145 145 145 150 150 155 155 155 155 190 120 120 190 120 187 190 120 120 120 120 120 95 165 Overloaded Moves . | . . . . . . . . . . . . . . . . . . . . . . . . . . . . . . . . Propulsion Burnouts . | . . . . . . . . . . . . . . . . . . . . . . . . . . . . . . . . Robots Hopped . | . . . . . . . . . . . . . . . . . . . . . . . . . . . . . . . . Cave-ins Triggered 1 | . . . . . . . . . . . . . 1 . . . . . . . . . . . . . . . . . . Teleports 1 | . . . . . . . . . . . . . . . . . . . . . . 1 . . . . . . . . . Exploration Rate (%) 53 | 4 72 95 60 98 69 29 58 24 55 54 68 75 10 84 54 82 57 26 51 52 60 73 36 53 36 81 57 5 71 33 35 Regions Visited 31 Branch Regions 19 Pre-discovered Areas 10 | . . . . 1 . . . . . . 1 1 . . . . . . 1 . 3 1 . 1 . 1 . . . . . Known Exits Taken 25 | . . . . . 1 . 1 1 1 1 1 1 1 1 1 1 1 1 1 1 1 1 1 1 1 1 1 1 1 1 . Unknown Exits Taken 5 | 1 1 1 1 1 . . . . . . . . . . . . . . . . . . . . . . . . . . . Scrap Searched 27 | . . 2 . 3 . . . . 2 4 . 4 . . . . . . 1 3 . 2 . 2 1 . 3 . . . . Spaces Dug 118 | . 1 . 3 . 11 2 . 2 1 . . . 12 2 . . 12 4 . . . 3 16 38 1 . . 3 2 . 5 Terrain Destroyed 841 | . 3 . 8 3 11 38 . 2 1 . . . 17 2 . . 400 4 . . . 3 98 93 1 . . 3 89 1 64 Melee 62 | . 1 . 3 . . 2 . 2 1 . . . 12 2 . . . 4 . . . 3 16 5 1 . . 3 2 . 5 Projectile 6 | . . . 5 . . . . . . . . . . . . . . . . . . . . . . . . . . 1 . AOE 773 | . 2 . . 3 11 36 . . . . . . 5 . . . 400 . . . . . 82 88 . . . . 87 . 59 Terrain Rammed . | . . . . . . . . . . . . . . . . . . . . . . . . . . . . . . . . Walls Destroyed . | . . . . . . . . . . . . . . . . . . . . . . . . . . . . . . . . Machines Disabled . | . . . . . . . . . . . . . . . . . . . . . . . . . . . . . . . . Actions | -11 -10 -10 -9 -9 -8 -8 -8 -7 -7 -7 -7 -6 -6 -6 -6 -6 -6 -5 -5 -5 -5 -4 -4 -4 -4 -4 -3 -3 -3 -2 -1 --------- Run | Yrd Mat Min Mat Min Mat Gar Mat Fac Low Low Dat Pro Fac Ext Cet Arc Hub Fac Upp Upp Zhi Pro Fac Upp Upp War Pro Res Tes Res Acc Total 19821 | 60 588 341 859 530 888 356 716 770 376 351 74 693 534 1094 241 217 648 1018 303 380 197 1082 1761 599 211 709 484 290 743 1132 1576 Wait 1793 | 1 3 1 58 25 47 14 74 13 1 14 . 81 126 71 136 62 45 32 8 8 1 297 128 70 35 44 167 26 21 61 123 Move 16149 | 44 499 335 673 484 700 305 555 696 358 336 74 588 349 768 96 139 558 925 291 364 164 710 1419 483 174 568 311 239 606 1042 1296 Hop . | . . . . . . . . . . . . . . . . . . . . . . . . . . . . . . . . Pick Up 168 | 6 8 2 12 3 18 1 8 7 1 1 . . 3 11 . . 2 8 . 2 3 2 26 4 . 8 . 1 11 9 11 Fast Attach 88 | 7 12 . 7 . 4 . 3 1 2 . . . . 3 3 4 2 4 . . 9 . 7 3 . 8 . . 5 . 4 Attach 65 | . 2 . 3 . 3 1 1 2 1 . . . 5 1 . . . 1 . . . 4 14 3 . 1 . 2 2 2 17 Detach 17 | . 1 . 1 . . . . . . . . . . . . 1 . . . . 1 . 4 1 . 1 . . 1 . 6 Swap 275 | . 5 . 17 7 15 10 11 14 6 . . 8 9 17 . 3 7 19 1 3 2 11 34 7 1 10 6 6 26 3 17 Drop 230 | . 8 . 17 6 32 1 13 10 2 . . 2 2 19 2 4 8 7 . 2 12 . 30 3 . 18 . . 21 8 3 Fire 668 | 2 40 . 59 5 65 20 48 23 4 . . 14 24 29 4 4 25 14 3 1 5 34 59 18 . 19 . 9 43 7 90 Melee 115 | . 9 3 6 . . 4 . 2 1 . . . 16 3 . . . 6 . . . 6 32 5 1 6 . 3 4 . 8 Ram . | . . . . . . . . . . . . . . . . . . . . . . . . . . . . . . . . Kick 13 | . . . . . . . . . . . . . . . . . . 2 . . . . 8 . . . . . 3 . . Crush 18 | . 1 . 6 . 4 . 3 2 . . . . . 1 . . 1 . . . . . . . . . . . . . . Escape Stasis 1 | . . . . . . . . . . . . . . . . . . . . . . . . . . . . . . . 1 Rewire 221 | . . . . . . . . . . . . . . 171 . . . . . . . 18 . 2 . 26 . 4 . . . Trap . | . . . . . . . . . . . . . . . . . . . . . . . . . . . . . . . . Miscellaneous . | . . . . . . . . . . . . . . . . . . . . . . . . . . . . . . . . Route ------- -11/Scrapyard -10/Materials (discovered 2 exits: *Mat / [*Min]) -10/Mines (discovered 2 exits: *Mat x2) -9/Materials (discovered 2 exits: *Mat / [*Min]) -9/Mines (discovered 2 exits: *Mat x2) -8/Materials (discovered 3 exits: *Fac x2 / Gar) -8/Garrison -8/Materials -7/Factory -7/Lower Caves -7/Lower Caves (discovered 2 exits: *Fac / *Dat) -7/Data Miner -6/Proximity Caves -6/Factory (discovered 3 exits: Fac x2 / *Ext) -6/Extension (discovered 2 exits: *Fac / *Cet) -6/Cetus -6/Archives (discovered 3 exits: *Fac / *Hub x2) -6/Hub_04(d) -5/Factory (discovered 2 exits: *Upp x2) -5/Upper Caves -5/Upper Caves -5/Zhirov -4/Proximity Caves -4/Factory (discovered 4 exits: Res / *Upp x2 / Arm) -4/Upper Caves -4/Upper Caves -4/Warlord -3/Proximity Caves -3/Research -3/Testing -2/Research (discovered 2 exits: *Acc x2) -1/Access (discovered 1 exit: Com) History --------- Turn | Location | Event 13 | -11/Scrapyard | Discovered new exit (range 15) 91 | -11/Scrapyard | Entered Materials 312 | -10/Materials | Build established: Mutant 346 | -10/Materials | Discovered new exit (range 4) 390 | -10/Materials | Discovered new exit (range 10) 1078 | -10/Materials | Entered Mines 1239 | -10/Mines | A weapon hastily lodged in a ceiling crevice suddenly fell to the ground 1534 | -10/Mines | Received a Rocket Launcher from a helpful Derelict 1537 | -10/Mines | Discovered new exit (range 15) 1566 | -10/Mines | Discovered new exit (range 16) 1626 | -10/Mines | Entered Materials 1626 | -9/Materials | Evolved 2 slots: Utility x1, Weapon x1 2268 | -9/Materials | Build established: Gunner 2560 | -9/Materials | Discovered new exit (range 11) 2953 | -9/Materials | Discovered new exit (range 8) 3030 | -9/Materials | Entered Mines 3045 | -9/Mines | Assembled infested the area 3118 | -9/Mines | Discovered new exit (range 8) 3207 | -9/Mines | Learned 2 Materials zone layouts 3242 | -9/Mines | Learned location of Storage (-7) 3695 | -9/Mines | Discovered new exit (range 4) 3718 | -9/Mines | Joined a pair of Derelicts in attacking an 0b10 outpost 3858 | -9/Mines | Entered Materials 3858 | -8/Materials | Accompanied by 1 ally 3858 | -8/Materials | Evolved 2 slots: Propulsion x1, Utility x1 3859 | -8/Materials | Identified exit to Factory 3863 | -8/Materials | Led the pair of lost Derelicts to an unsafe place 4147 | -8/Materials | Discovered exit to Factory (range 13) 5254 | -8/Materials | Identified exit to Garrison 5254 | -8/Materials | Entered Garrison 5304 | -8/Garrison | Spotted B-75 Beast 5304 | -8/Garrison | Spotted B-75 Beast 5530 | -8/Garrison | Triggered checkpoint 5652 | -8/Garrison | Triggered checkpoint 5788 | -8/Garrison | Discovered new exit (range 10) 5836 | -8/Garrison | Entered Materials 5962 | -8/Materials | Garrison activated, responded to threat 6397 | -8/Materials | Discovered exit to Factory (range 15) 6480 | -8/Materials | Build established: Tank 6883 | -8/Materials | Entered Factory 6883 | -7/Factory | Evolved 2 slots: Utility x2 7908 | -7/Factory | Discovered new exit (range 11) 8036 | -7/Factory | Identified exit to Lower Caves 8037 | -7/Factory | Entered Lower Caves 8108 | -7/Lower Caves | Learned Factory garrison access intel 8345 | -7/Lower Caves | Build established: Skirmisher 8535 | -7/Lower Caves | Learned Factory security intel 8540 | -7/Lower Caves | Discovered new exit (range 4) 8571 | -7/Lower Caves | Found Alien Artifact 8571 | -7/Lower Caves | Identified Core Expander 8571 | -7/Lower Caves | Installed Core Expander, added new Weapon slot 8584 | -7/Lower Caves | Identified exit to Lower Caves 8591 | -7/Lower Caves | Entered another Lower Caves area 8652 | -7/Lower Caves | Discovered new exit (range 13) 8669 | -7/Lower Caves | Identified exit to Factory 8898 | -7/Lower Caves | Discovered new exit (range 12) 8910 | -7/Lower Caves | Learned location of 1 exit from Factory 9075 | -7/Lower Caves | Identified exit to Data Miner 9094 | -7/Lower Caves | Entered Data Miner 9094 | -7/Data Miner | Discovered new exit (range 6) 9122 | -7/Data Miner | Met Data Miner 9148 | -7/Data Miner | Learned location of Section 7 (-2) 9148 | -7/Data Miner | Acquired the access code to Warlord's prototype stash 9170 | -7/Data Miner | Received God Mode back door access code from Data Miner 9200 | -7/Data Miner | Identified exit to Proximity Caves 9202 | -7/Data Miner | Entered Proximity Caves 9205 | -6/Proximity Caves | Spotter reported a threat 9205 | -6/Proximity Caves | Spotter reported a threat 9359 | -6/Proximity Caves | Spotter reported a threat 9845 | -6/Proximity Caves | Learned location of Zion (-6) 10179 | -6/Proximity Caves | Learned 4 Factory zone layouts 10212 | -6/Proximity Caves | Discovered exit to Factory (range 10) 10227 | -6/Proximity Caves | Entered Factory 10227 | -6/Factory | Evolved 2 slots: Utility x2 10228 | -6/Factory | Identified exit to Factory 10231 | -6/Factory | Loaded intel: 4 garrison access locations 10280 | -6/Factory | Garrison activated, responded to threat 10532 | -6/Factory | Garrison activated, responded to threat 10537 | -6/Factory | Build established: Tank 10577 | -6/Factory | Search patrols dispatched 10856 | -6/Factory | Discovered new exit (range 13) 10881 | -6/Factory | Crushed by falling debris 11029 | -6/Factory | Destroyed 7 combat bots 11031 | -6/Factory | Identified exit to Extension 11033 | -6/Factory | Entered Extension 11107 | -6/Extension | Rescued a captive Derelict 11108 | -6/Extension | Rescued a captive Derelict 11416 | -6/Extension | Rescued a captive Derelict 11533 | -6/Extension | Rescued a captive Derelict 11534 | -6/Extension | Rescued a captive Derelict 11912 | -6/Extension | Spotted B-75 Beast 11915 | -6/Extension | Destroyed B-75 Beast 11923 | -6/Extension | Spotted B-75 Beast 11926 | -6/Extension | Destroyed B-75 Beast 12065 | -6/Extension | Build established: Commander-Gunner 12202 | -6/Extension | Rescued a captive Derelict 12423 | -6/Extension | Rescued A7 12433 | -6/Extension | First assault squad dispatched 12553 | -6/Extension | Discovered exit to Factory (range 10) 12554 | -6/Extension | Discovered new exit (range 6) 12567 | -6/Extension | Identified exit to Cetus 12603 | -6/Extension | Entered Cetus 12603 | -6/Cetus | Accompanied by 16 allies (A7) 12608 | -6/Cetus | Acquired a Cetus Manufacturing Module code from A7 12624 | -6/Cetus | Spotted Cetus Guard 12624 | -6/Cetus | Spotted Cetus Guard 12628 | -6/Cetus | Spotted Cetus Guard 12628 | -6/Cetus | Spotted Cetus Guard 12633 | -6/Cetus | Allies destroyed Cetus Guard 12636 | -6/Cetus | Destroyed Cetus Guard 12637 | -6/Cetus | Allies destroyed Cetus Guard 12644 | -6/Cetus | Allies destroyed Cetus Guard 12723 | -6/Cetus | Started Cetus Manufacturing Module 12748 | -6/Cetus | Manufactured an Enhanced Grunt 12748 | -6/Cetus | Discovered new exit (range 16) 12770 | -6/Cetus | Identified exit to Archives 12773 | -6/Cetus | Manufactured an Enhanced Grunt 12798 | -6/Cetus | Manufactured an Enhanced Grunt 12823 | -6/Cetus | Manufactured an Enhanced Grunt 12848 | -6/Cetus | Manufactured an Enhanced Grunt 12911 | -6/Cetus | Entered Archives 12911 | -6/Archives | Accompanied by 21 allies (A7) 12959 | -6/Archives | Discovered new exit (range 15) 12960 | -6/Archives | Build established: Commander-Tank 12989 | -6/Archives | Discovered exit to Factory (range 16) 13099 | -6/Archives | Unable to access archive contents 13122 | -6/Archives | Discovered new exit (range 15) 13144 | -6/Archives | Identified exit to Hub_04(d) 13212 | -6/Archives | Entered Hub_04(d) 13212 | -6/Hub_04(d) | Accompanied by 19 allies 13779 | -6/Hub_04(d) | Lost 3 allies 13912 | -6/Hub_04(d) | First assault squad dispatched 14042 | -6/Hub_04(d) | Lost 6 allies 14147 | -6/Hub_04(d) | Discovered exit to Factory (range 15) 14200 | -6/Hub_04(d) | Network Hub disabled 14223 | -6/Hub_04(d) | Network Hub disabled 14236 | -6/Hub_04(d) | Entered Factory 14236 | -5/Factory | Evolved 2 slots: Propulsion x1, Utility x1 14261 | -5/Factory | Build established: Scavenger-Tank 15136 | -5/Factory | First assault squad dispatched 15470 | -5/Factory | Identified exit to Upper Caves 15546 | -5/Factory | Entered Upper Caves 15790 | -5/Upper Caves | Learned location of Armory (-4) 15793 | -5/Upper Caves | Encountered a Warlord checkpoint 15877 | -5/Upper Caves | Discovered new exit (range 9) 15917 | -5/Upper Caves | Identified exit to Upper Caves 15918 | -5/Upper Caves | Entered another Upper Caves area 16180 | -5/Upper Caves | Learned 12 Factory zone layouts 16240 | -5/Upper Caves | Attracted the attention of an 0b10 checkpoint 16362 | -5/Upper Caves | Discovered new exit (range 11) 16374 | -5/Upper Caves | Identified exit to Zhirov 16375 | -5/Upper Caves | Entered Zhirov 16375 | -5/Zhirov | Discovered new exit (range 3) 16397 | -5/Zhirov | Met Zhirov 16419 | -5/Zhirov | Learned location of Quarantine (-2) 16419 | -5/Zhirov | Learned location of Testing (-3) 16419 | -5/Zhirov | Learned location of Command (-1) 16429 | -5/Zhirov | Zhirov requested help retrieving the SGEMP Prototype 16449 | -5/Zhirov | Found Alien Artifact 16449 | -5/Zhirov | Identified Integrated Dissipator 16449 | -5/Zhirov | Installed Integrated Dissipator, increased core heat dissipation (+20) 16467 | -5/Zhirov | Found Alien Artifact 16617 | -5/Zhirov | Identified exit to Proximity Caves 16618 | -5/Zhirov | Entered Proximity Caves 16750 | -4/Proximity Caves | Build established: Tank 17089 | -4/Proximity Caves | Identified Transdimensional Reconstructor 17089 | -4/Proximity Caves | Warped through subspace 17251 | -4/Proximity Caves | Spotted B-86 Titan 17320 | -4/Proximity Caves | Destroyed 7 combat bots 17561 | -4/Proximity Caves | Attracted the attention of an 0b10 outpost 17703 | -4/Proximity Caves | Destroyed 12 combat bots 17936 | -4/Proximity Caves | Acquired the password to a Derelict Tinkerer's latest research 17945 | -4/Proximity Caves | Found Prototype Special Weapon 17955 | -4/Proximity Caves | Discovered new exit (range 11) 17965 | -4/Proximity Caves | Identified exit to Factory 17967 | -4/Proximity Caves | Entered Factory 17967 | -4/Factory | Evolved 2 slots: Utility x2 17968 | -4/Factory | Identified exit to Upper Caves 17968 | -4/Factory | Identified exit to Research 18306 | -4/Factory | Incoming investigation squad redirected 18760 | -4/Factory | Build established: Skirmisher 18929 | -4/Factory | Identified exit to Armory 18993 | -4/Factory | Spotted B-86 Titan 19243 | -4/Factory | Central database locked down 19302 | -4/Factory | Incoming investigation squad redirected 19981 | -4/Factory | Fabricated Gatling Laser? 20098 | -4/Factory | Entered Upper Caves 20100 | -4/Upper Caves | Attracted the attention of an 0b10 outpost 20131 | -4/Upper Caves | Destroyed 9 combat bots 20135 | -4/Upper Caves | Build established: Pyromaniac-Gunner 20135 | -4/Upper Caves | Lost 3 parts (1n2u) 20337 | -4/Upper Caves | A Commander dispatched an escort 20366 | -4/Upper Caves | Learned Armory trap positions 20366 | -4/Upper Caves | Learned Armory garrison access intel 20537 | -4/Upper Caves | Build established: Gunner 20717 | -4/Upper Caves | P-70 Sage assimilated allied I4-5H9(g) 20747 | -4/Upper Caves | Discovered new exit (range 8) 20756 | -4/Upper Caves | Identified exit to Upper Caves 20812 | -4/Upper Caves | Entered another Upper Caves area 20812 | -4/Upper Caves | Accompanied by 2 allies 20813 | -4/Upper Caves | Commander's escort returned to base 20813 | -4/Upper Caves | Commander's escort returned to base 21043 | -4/Upper Caves | Discovered new exit (range 14) 21059 | -4/Upper Caves | Identified exit to Warlord 21061 | -4/Upper Caves | Entered Warlord 21101 | -4/Warlord | System corruption cleaned by Quarantine Array 21235 | -4/Warlord | Learned 4 Access zone layouts 21235 | -4/Warlord | Learned 4 Access zone layouts 21237 | -4/Warlord | Learned Testing security intel 21237 | -4/Warlord | Learned Research garrison access intel 21406 | -4/Warlord | Met Warlord 21418 | -4/Warlord | Opened Warlord's prototype stash 21430 | -4/Warlord | Found Prototype Processor 21430 | -4/Warlord | Identified Exp. Core Analyzer 21431 | -4/Warlord | Warlord's base attacked by MAIN.C 21638 | -4/Warlord | Found Prototype Device 21638 | -4/Warlord | Identified Minesniffer Drone Bay 21765 | -4/Warlord | Spotted Striker 21772 | -4/Warlord | Destroyed Striker 21781 | -4/Warlord | Warlord forces counterattacked 21789 | -4/Warlord | Spotted Executioner 21818 | -4/Warlord | Spotted Striker 21828 | -4/Warlord | Destroyed Striker 21839 | -4/Warlord | Spotted Striker 21885 | -4/Warlord | Discovered new exit (range 12) 21896 | -4/Warlord | Identified exit to Proximity Caves 21925 | -4/Warlord | Entered Proximity Caves 21925 | -3/Proximity Caves | Accompanied by 5 allies 22224 | -3/Proximity Caves | Received a Behemoth hack from an annoying Tinkerer 22232 | -3/Proximity Caves | Build established: Commander-Gunner 22283 | -3/Proximity Caves | Discovered exit to Research (range 5) 22475 | -3/Proximity Caves | Entered Research 22475 | -3/Research | Accompanied by 5 allies 22475 | -3/Research | Evolved 2 slots: Power x1, Utility x1 22476 | -3/Research | Loaded intel: 4 garrison access locations 22573 | -3/Research | Discovered new exit (range 9) 22603 | -3/Research | Identified exit to Testing 22764 | -3/Research | P-80 Master assimilated allied Disruptor 7a 22834 | -3/Research | Entered Testing 22834 | -3/Testing | Accompanied by 4 allies 22843 | -3/Testing | P-80 Master assimilated allied Sentinel 7c 22849 | -3/Testing | P-80 Master assimilated allied Warden 8a 22983 | -3/Testing | Discovered new exit (range 13) 23024 | -3/Testing | Identified exit to Research 23058 | -3/Testing | Build established: Scavenger-Gunner 23153 | -3/Testing | Found Prototype Protection 23153 | -3/Testing | Identified SHELL Armor 23154 | -3/Testing | Lost 3 parts (1p1u1w) 23158 | -3/Testing | Found Lgt. Regenerative Plating 23162 | -3/Testing | Found Lgt. Regenerative Plating 23478 | -3/Testing | Found Prototype Leg 23478 | -3/Testing | Identified Myomer Exoskeleton 23553 | -3/Testing | Scanned by Researcher 23716 | -3/Testing | Entered Research 23716 | -2/Research | Warlord forces began assault on 0b10 23716 | -2/Research | Evolved 2 slots: Utility x1, Weapon x1 23785 | -2/Research | Met up with Warlord 23826 | -2/Research | Research machine network offline 24108 | -2/Research | Discovered new exit (range 12) 24119 | -2/Research | Identified exit to Access 24207 | -2/Research | Borebot progress halted 24240 | -2/Research | Borebot progress halted 24363 | -2/Research | Borebot progress halted 24401 | -2/Research | Spotted Striker 24407 | -2/Research | Spotted Striker 24412 | -2/Research | Destroyed Striker 24637 | -2/Research | Discovered exit to Access (range 12) 24716 | -2/Research | Warlord invited to help at Command 24807 | -2/Research | Entered Access 24807 | -1/Access | Evolved 2 slots: Utility x2 24808 | -1/Access | Identified exit to Command 24939 | -1/Access | P-80 Master assimilated allied M4-RZ8(B) 24940 | -1/Access | Spotted M4-RZ8(B) 25832 | -1/Access | Build established: Hacker-Gunner 25959 | -1/Access | Garrison activated, responded to threat 25994 | -1/Access | Found Prototype Energy Gun 25994 | -1/Access | Identified Enh. Gamma Rifle 26079 | -1/Access | Garrison activated, responded to threat 26132 | -1/Access | Destroyed 12 combat bots 26141 | -1/Access | Lost 3 parts (2u1w) 26307 | -1/Access | First assault squad dispatched 26472 | -1/Access | Spotted B-99 Colossus 26474 | -1/Access | Befriended a Behemoth using the annoying Tinkerer's hack 26480 | -1/Access | Lost 3 parts (3w) 26480 | -1/Access | System corruption reached 10% 26500 | -1/Access | Self-destructed Last Messages --------------- 26494_ Slug penetrates H-88 Terminator. 26495_ System corrupted: Energy discharge (-294). 26496_ SHELL Armor destroyed. 26496_ Penetrated by Slug. 26496_ Slug penetrates Wall. 26496_ Penetrated by Slug. 26496_ Exp. Myomer Leg destroyed. 26496_ Slug penetrates Wall. 26497_ Hvy. Antimatter Reactor destroyed. 26498_ Slug penetrates Wall. 26498_ Slug penetrates Door. 26498_ Enh. Quantum Rifle destroyed. 26499_ Slug penetrates B-74 Champion. 26499_ Penetrated by Slug. 26499_ Adv. Heat Sink destroyed. 26500_ Enh. Quantum Rifle destroyed. 26500_ Knocked back. 26500_ Penetrated by Slug. 26500_ Slug penetrates Wall. Map ----- +----------------------------------------------------+ | ?????????????????????????????????????????????????? | | ?????????????????????????????????????????????????? | | ?????????????????????????????????????????????????? | | ?????????????????????????????????????????????????? | | ?????????????????????????????????????????????????? | | ?????????????????????????????????????????????????? | | ?????????????????????????????????????????????????? | | ?????????????????????????????????????????????????? | | ?????????????????????????????????????????????????? | | ?????????????????????????????????????????????????? | | ?????????????????????????????????????????????????? | | ?????????????????????????????????????????????????? | | ?????????????????????????????????????????????????? | | ?????????????????????????????????????????????????? | | ?????????????????????????????????????????????????? | | ?????????????????????????????????????????????????? | | ?????????????????????????????????????????????????? | | ?????????????????????????H???????????????????????? | | ???????????????????#?????????????????????????????? | | ???????????????????# ??????##########????????????? | | ????????????#??????# ??????# ?????????????? | | ???????????? ?????# ??????# ?????????????? | | ##??##BB;##### ####### """"?????????????? | | BB % # """"?????????????? | | % %# """"""???????????? | | @ #% """""" #????????? | | ; """""" #????????? | | #g #????????? | | [!# Q #????????? | | !!! %!!= !#????????? | | !!!gbh%! #????????? | | "" !!m !#! = #????????? | | "" x h %%gb ##############????????? | | """""" % h#?????????????????????? | | """""" g####################### | | "" h | | "" | | | | | | | | ##################+;###### ############## | | #??????????????? ????# ## ! #??????? | | #????????????? #??# ## #??????? | | #????????????# #??# ## #??????? | | #????????????# #??# ## #??????? | | #????????????# #??# ## #??????? | | #????????????# %] #??# #####+####??????? | | +????????????# ]! #??# #?????????? | | #????????????# ]! #??# #?????????? | | #????????????# #??# #?????????? | +----------------------------------------------------+ Best States ------------- Heat Dissipation 186 Energy Generation 45 Energy Capacity 1080 Matter Stores 300 Matter Capacity 300 Sight Range 16 Robot Scan Range 18 Terrain Scan Density 10 Jamming Range 16 Power Amplification 30 Base Temperature (-) 200 Corruption Containment 12 Armor Coverage 900 Point Defense Rating 240 Weapon Cycling 25 Evasion (%) 68 Targeting Accuracy 8 Target Analysis 8 Recoil Reduction 3 Offensive Hacking 24 Defensive Hacking 14 Item Schematics ----------------- Combat Drone Bay | -7/Data Miner | Free Lgt. Regenerative Plating | -7/Data Miner | Free Cld. Aerolev Unit | -7/Data Miner | Free Gravity Neutralizer | -7/Data Miner | Free Com. Ion Cannon | -7/Data Miner | Free Field Propulsion Drive | -7/Data Miner | Free Imp. Thermal Shield | -7/Data Miner | Free Hvy. Phase Cannon | -7/Data Miner | Free Imp. Remote Datajack | -7/Data Miner | Free Adv. Terrain Scanner | -7/Data Miner | Free Phase Gun | -7/Data Miner | Free Imp. Plasma Cutter | -7/Data Miner | Free Imp. Cloaking Device | -7/Data Miner | Free Gatling Laser | -5/Factory | Hacked Assault Drone Bay | -5/Zhirov | Free Exp. Heat Sink | -5/Zhirov | Free Exp. Optical Array | -5/Zhirov | Free Imp. Arc Thrower | -5/Zhirov | Free Hyp. Railgun | -4/Factory | Hacked HERF Cannon | -4/Factory | Hacked Ragnarok Missile Launcher | -4/Factory | Hacked Imp. Matter Neutralizer | -3/Testing | Scanalyzed Exp. Core Analyzer | -3/Testing | Hacked Imp. Lightning Gun | -3/Testing | Archive Exp. Hacking Suite | -3/Testing | Archive Enh. Fission Core | -3/Testing | Archive Kinetic Spear | -3/Testing | Archive Energy Mantle | -3/Testing | Archive Cld. Nuclear Pulse Thruster | -3/Testing | Archive Robot Schematics ------------------ L-41 Fighter | -7/Data Miner | Free C-17 Slicer | -7/Data Miner | Free D-53 Grenadier | -7/Data Miner | Free A-15 Conveyor | -7/Data Miner | Free M-22 Extractor | -7/Data Miner | Free G-50 Soldier | -7/Data Miner | Free R-06 Scavenger | -3/Testing | Archive Fabricated ------------ Gatling Laser | x2 | -4/Factory Alien Tech Used ----------------- Core Expander Integrated Dissipator Transdimensional Reconstructor Achievements -------------- Pyromaniac Challenges ------------ None Game ------ Seed MissileMobileRigger Manual? 0 Play Time 04:15:44 Cumulative 259.3 hours Start 2024.08.31 @ 20:40:11 End 2024.09.01 @ 23:42:35 Sessions 5 Manual Loads 0 Difficulty Rogue Special Mode None Game No. 186 Rogue 186 Adventurer 0 Explorer 0 Win Type - Total 5 Types 5/0/0/0/0/0/0/0/0 Lore% 61 Gallery% 75 Achievement% 63 Wizard Run 0 Options --------- Layout 1 ASCII 0 Keyboard 1 Movement Numpad Keybinds 0 Fullscreen 2 Font 24/Smallcaps Map View 50x35 Zoom Use 0% Tactical HUD 1 Map Filters NONE Filters NONE Steam 1 RUN: 5d26fe7c-52bd-488c-972c-e07f6497ebad